Cogmind - Beta 13 --- EXPLORER MODE // 2024.05.27 @ 19:44:59 Player: Xax Result: Destroyed self with Rocket Launcher Performance ------------- Evolutions (0) 0 Regions Visited (2) 400 Robots Destroyed (15) 75 Value Destroyed (448) 448 Prototype IDs (2) 40 Alien Tech Used (0) 0 Bonus (0) 0 TOTAL SCORE: 963 Bonus ------- None Cogmind --------- Core Integrity 0/250 Matter 220/300 Energy 300/300 System Corruption 5% Temperature Cool (0) Movement Core (800) Ox15 Location -10/Mines Parts ------- > --- POWER (1) -------- (None) > --- PROPULSION (2) --- (None) > --- UTILITY (3) ------ High-capacity Storage Unit Large Battery Weapon Shielding > --- WEAPON (2) ------- Rocket Launcher > --- INVENTORY (20) --- Medium Storage Unit Large Storage Unit High-capacity Matter Pod (75) Signal Interpreter Shock Absorption System Peak State ------------ > --- POWER ------------ Ion Engine > --- PROPULSION ------- Light Treads Light Treads > --- UTILITY ---------- High-capacity Storage Unit Terrain Scanner Power Shielding > --- WEAPON ----------- Small Laser Mini Grenade Launcher > --- INVENTORY -------- Medium Storage Unit Large Storage Unit Large Battery High-capacity Matter Pod Signal Interpreter Weapon Shielding Shock Absorption System Rocket Launcher [Rating: 10] Favorites ----------- Power Light Ion Engine Engine Light Ion Engine Propulsion Light Treads Treads Light Treads Utility Power Shielding Device Terrain Scanner Storage High-capacity Storage Unit Protection Power Shielding Weapon Small Laser Energy Gun Small Laser Launcher Rocket Launcher Build | -11 -10 -10 ------- Run | Yrd Mat Min Slots Evolved 1 | . 1 . Power . | . . . Propulsion . | . . . Utility 1 | . 1 . Weapon . | . . . Parts Attached 24 | 8 7 9 Power 3 | 2 . 1 Engine 3 | 2 . 1 Core . | . . . Reactor . | . . . Propulsion 4 | 2 2 . Treads 4 | 2 2 . Leg . | . . . Wheel . | . . . Hover . | . . . Flight . | . . . Utility 10 | 2 5 3 Device 1 | 1 . . Storage 7 | . 5 2 Processor . | . . . Hackware . | . . . Protection 2 | 1 . 1 Artifact . | . . . Weapon 7 | 2 . 5 Energy Gun 4 | 2 . 2 Energy Cannon . | . . . Ballistic Gun . | . . . Ballistic Cannon . | . . . Launcher 3 | . . 3 Special Weapon . | . . . Impact Weapon . | . . . Slashing Weapon . | . . . Piercing Weapon . | . . . Special Melee Weapon . | . . . Unidentified Prototypes . | . . . Parts Lost 7 | . . 7 Power 1 | . . 1 Propulsion 1 | . . 1 Utility 2 | . . 2 Weapon 3 | . . 3 Highest Loss Streak 5 | . . 5 To Critical Strikes . | . . . Average Slot Usage (%) 92 | . 97 87 Engine 7 | . 12 2 Treads 23 | . 24 23 Device 11 | . 12 11 Storage 12 | . 12 13 Protection 12 | . 12 12 Energy Gun 22 | . 23 22 Launcher 1 | . . 2 Naked Turns . | . . . Heaviest Build 55 | 8 48 55 Greatest Support 40 | 40 40 40 Greatest Overweight (x) 16 | . 1 16 Average Overweight (x) . | . . 1 Largest Inventory Capacity 25 | 5 25 20 Average Capacity 17 | 5 17 20 Most Carried 9 | 5 9 9 Average Carried 7 | 3 7 8 Final Capacity 20 | 5 20 20 Final Carried 9 | 5 9 5 Class Distribution -------------------- 100% | Hacker-Mutant Dominant Class ---------------- Hacker-Mutant | -10/Materials Hacker-Mutant | -10/Mines Resources | -11 -10 -10 ----------- Run | Yrd Mat Min Matter Collected 658 | 230 248 180 Remotely . | . . . Salvage Created 549 | . 363 186 Parts 23 | . 18 5 Haulers Intercepted . | . . . Recyclers Shooed . | . . . Parts Field Recycled . | . . . Retrieved Matter . | . . . Parts Self-Destructed . | . . . Prevented . | . . . Kills | -11 -10 -10 ------- Run | Yrd Mat Min Combat Hostiles Destroyed 20 | . 5 15 Guns 6 | . 5 1 AOE 14 | . . 14 Classes Destroyed 6 | . 3 3 Builder 2 | . 2 . Tunneler 1 | . . 1 Watcher 3 | . 3 . Grunt 7 | . 5 2 Demolisher 2 | . . 2 Assembled 11 | . . 11 Best Kill Streak 7 | . 4 7 Combat Bots Only 7 | . 2 7 Max Kills in Single Turn 3 | . 3 3 Gunslinging . | . . . Exploded 3 | . . 3 Melee . | . . . Uniques/NPCs Destroyed . | . . . Combat | -11 -10 -10 -------- Run | Yrd Mat Min Hostile Shots Fired 108 | . 20 88 Missed 27 | . 6 21 Damage Taken 1211 | . 149 1062 Core 251 | . 20 231 Absorbed by Shields . | . . . Redirected to Shielding 26 | . . 26 Ignored by Resistances 601 | . 89 512 Regen/Repaired (Parts) 120 | . 120 . Core Remaining (%) 100 | 100 . . Volleys Fired 39 | . 19 20 Largest 2 | . 2 2 Hottest 80 | . 80 80 Shots Fired 70 | . 38 32 Gun 53 | . 38 15 Cannon . | . . . Launcher 17 | . . 17 Special . | . . . Kinetic . | . . . Thermal 30 | . 19 11 Explosive 17 | . . 17 Electromagnetic 23 | . 19 4 Robot Hit Streak 21 | . 21 17 Robot Miss Streak 1 | . 1 1 Penetration Max . | . . . Secondary Targets . | . . . Shots Hit Robots 55 | . 30 25 Core Hits 42 | . 18 24 Critical Kills . | . . . Critical Parts Destroyed . | . . . Critical Strikes . | . . . Melee Attacks . | . . . Impact . | . . . Slashing . | . . . Piercing . | . . . Sneak Attacks . | . . . Combat Hostiles . | . . . Follow-up Attacks . | . . . Damage Inflicted 1629 | . 499 1130 Guns 508 | . 382 126 Cannons . | . . . Explosions 1121 | . 117 1004 Melee . | . . . Ramming . | . . . Kinetic . | . . . Thermal 551 | . 254 297 Explosive 784 | . . 784 Electromagnetic 294 | . 245 49 Impact . | . . . Slashing . | . . . Piercing . | . . . Highest Corruption 5 | . 1 5 Average Corruption 1 | . 1 1 Corruption Purged . | . . . Corruption Blocked . | . . . Effects 12 | . 3 9 Message Errors 1 | . . 1 Matter Fused 4 | . 1 3 Heat Flow Errors 1 | . 1 . Energy Discharges 3 | . 1 2 Parts Rejected 3 | . . 3 Overload Shots . | . . . Overflow Damage 80 | . 6 74 Projectiles . | . . . Explosions 80 | . 6 74 Melee . | . . . Knockbacks . | . . . Impact . | . . . Kinetic . | . . . Secondary . | . . . Self-Inflicted Damage 174 | . 35 139 Shots 6 | . 1 5 Rammed . | . . . Targets Rammed . | . . . Kicked . | . . . Crushed . | . . . Highest Temperature 222 | . 222 74 Average Temperature 59 | . 77 22 Received Heat Transfer 323 | . 102 221 Siege Activations . | . . . Robots Corrupted . | . . . Combat Hostiles . | . . . Parts Fried . | . . . Impact Corruptions . | . . . Robots Melted . | . . . Combat Hostiles . | . . . Parts Melted . | . . . Heat Transferred 750 | . 425 325 Parts Sabotaged . | . . . Parts Stolen . | . . . Parts Stripped . | . . . Power Chain Reactions 3 | . 1 2 Alert | -11 -10 -10 ------- Run | Yrd Mat Min Peak Influence 178 | . 178 66 Initial . | . . . Average 28 | . 39 20 Maximum Alert Level . | . . . Low Security (%) 100 | 100 100 100 Level 1 . | . . . Level 2 . | . . . Level 3 . | . . . Level 4 . | . . . Level 5 . | . . . High Security . | . . . Max Security . | . . . Squads Dispatched . | . . . Investigation . | . . . Extermination . | . . . Reinforcement . | . . . Assault . | . . . Garrison . | . . . Intercept . | . . . Searches Triggered . | . . . Construction Impeded . | . . . Haulers Reinforced . | . . . Active Scanning Responses . | . . . Cargo Convoy Interrupts . | . . . Stealth | -11 -10 -10 --------- Run | Yrd Mat Min Distress Signals 2 | . 2 . Communications Jammed . | . . . Distress Signals . | . . . Times Spotted 36 | . 9 27 Peak Tracking Total 18 | . 3 18 Tactical Retreats 3 | . . 3 Traps | -11 -10 -10 ------- Run | Yrd Mat Min Traps Triggered 1 | . 1 . Indirectly . | . . . Trap Hack Attempts . | . . . Triggered . | . . . Disarmed . | . . . Reprogrammed . | . . . Reused . | . . . Traps Extracted . | . . . Installed . | . . . Triggered . | . . . Machines | -11 -10 -10 ---------- Run | Yrd Mat Min Machines Disabled . | . . . Max in Single Turn . | . . . Machines Repaired . | . . . Machines Dismantled . | . . . Machines Sabotaged . | . . . Overloaded Fab Kills . | . . . Hacking | -11 -10 -10 --------- Run | Yrd Mat Min Machines Accessed 4 | . 3 1 Terminals 3 | . 2 1 Fabricators . | . . . Repair Stations 1 | . 1 . Recycling Units . | . . . Scanalyzers . | . . . Garrison Access . | . . . Total Hacks 12 | . 11 1 Successful 10 | . 9 1 Failed 2 | . 2 . Catastrophic . | . . . Database Lockouts . | . . . Manual . | . . . Terminals 5 | . 4 1 Fabricators . | . . . Repair Stations 7 | . 7 . Recycling Units . | . . . Scanalyzers . | . . . Garrison Access . | . . . Terminal Hacks 4 | . 3 1 Prototype ID Bank 1 | . 1 . Alert Level 1 | . 1 . Dispatch Records 2 | . 1 1 Fabricator Hacks . | . . . Repair Station Hacks 6 | . 6 . Scan Component 3 | . 3 . Repair 3 | . 3 . Recycling Unit Hacks . | . . . Scanalyzer . | . . . Garrison Access Hacks . | . . . Unauthorized Hacks . | . . . Terminals . | . . . Fabricators . | . . . Repair Stations . | . . . Recycling Units . | . . . Scanalyzers . | . . . Garrison Access . | . . . Data Cores Recovered . | . . . Used . | . . . Hacking Detections 1 | . 1 . Full Trace Events . | . . . Feedback Events . | . . . Feedback Blocked . | . . . Robot Schematics Acquired . | . . . Robots Built . | . . . Authchips . | . . . Time . | . . . Total Robot Build Rating . | . . . Part Schematics Acquired . | . . . Parts Built . | . . . Authchips . | . . . Time . | . . . Total Part Build Rating . | . . . Parts Repaired 3 | . 3 . Time 78 | . 78 . Parts Recycled . | . . . Recycled Matter . | . . . Retrieved Matter . | . . . Retrieved Components . | . . . Parts Scanalyzed . | . . . Part Schematics Acquired . | . . . Parts Damaged . | . . . Bothacking | -11 -10 -10 ------------ Run | Yrd Mat Min Used RIF Installer . | . . . Robots Hacked . | . . . Non-combat . | . . . Combat . | . . . Robot Hacks Applied . | . . . Relay Couplers Released . | . . . Fabnet Peak Effective % . | . . . Robots Rewired . | . . . Allies Hacked . | . . . Hacks Repelled . | . . . Allies | -11 -10 -10 -------- Run | Yrd Mat Min Total Allies . | . . . Largest Group . | . . . Highest-Rated Group . | . . . Highest-Rated Ally . | . . . Total Orders . | . . . Ally Attacks . | . . . Total Damage . | . . . Kills . | . . . Allies Corrupted . | . . . Allies Melted . | . . . Intel | -11 -10 -10 ------- Run | Yrd Mat Min Robot Analysis Total . | . . . Derelict Logs Recovered . | . . . Drone Launches . | . . . Drone Recoveries . | . . . Exploration | -11 -10 -10 ------------- Run | Yrd Mat Min Turns Passed 2188 | 112 1074 1002 Spaces Moved 875 | 58 444 373 Core 9 | 4 . 5 Treads 866 | 54 444 368 Legs . | . . . Wheels . | . . . Hover . | . . . Flight . | . . . Fastest Speed 50 | 50 160 240 Average Speed 217 | 152 198 249 Slowest Speed 850 | 160 240 850 Overloaded Moves . | . . . Propulsion Burnouts . | . . . Robots Hopped . | . . . Cave-ins Triggered 1 | . . 1 Exploration Rate (%) 49 | 4 80 63 Regions Visited 2 Branch Regions 1 Pre-discovered Areas 1 | . . 1 Known Exits Taken 2 | 1 1 . Unknown Exits Taken . | . . . Scrap Searched . | . . . Spaces Dug . | . . . Terrain Destroyed 120 | . 3 117 Melee . | . . . Projectile . | . . . AOE 120 | . 3 117 Terrain Rammed . | . . . Walls Destroyed . | . . . Machines Disabled . | . . . Actions | -11 -10 -10 --------- Run | Yrd Mat Min Total 1092 | 80 601 411 Wait 132 | 5 121 6 Move 873 | 57 443 373 Hop . | . . . Pick Up 22 | 10 9 3 Fast Attach 2 | 2 . . Attach 15 | 5 3 7 Detach . | . . . Swap 7 | 1 4 2 Drop 2 | . 2 . Fire 39 | . 19 20 Melee . | . . . Ram . | . . . Kick . | . . . Crush . | . . . Escape Stasis . | . . . Rewire . | . . . Trap . | . . . Miscellaneous . | . . . Route ------- -11/Scrapyard -10/Materials (discovered 4 exits: *Mat x2 / *Min x2) -10/Mines (discovered 1 exit: *Mat) History --------- Turn | Location | Event 18 | -11/Scrapyard | Identified exit to Materials 18 | -11/Scrapyard | Discovered exit to Materials (range 14) 113 | -11/Scrapyard | Entered Materials 113 | -10/Materials | Evolved 1 slot: Utility x1 328 | -10/Materials | Build established: Hacker-Mutant 479 | -10/Materials | Identified exit to Mines 479 | -10/Materials | Discovered exit to Mines (range 6) 571 | -10/Materials | Identified exit to Materials 571 | -10/Materials | Discovered exit to Materials (range 12) 782 | -10/Materials | Discovered exit to Materials (range 16) 1027 | -10/Materials | Repaired Lgt. Treads 1055 | -10/Materials | Repaired Lgt. Treads 1083 | -10/Materials | Repaired EM Pulse Gun 1151 | -10/Materials | Discovered exit to Mines (range 15) 1187 | -10/Materials | Entered Mines 1194 | -10/Mines | Received a Rocket Launcher from a helpful Derelict 1266 | -10/Mines | Discovered exit to Materials (range 12) 1617 | -10/Mines | Learned location of Storage (-7) 2008 | -10/Mines | Assembled infested the area 2013 | -10/Mines | Assisted by a Guerilla fighting off Assembled 2081 | -10/Mines | Core integrity fell below 50% 2100 | -10/Mines | Crushed by falling debris 2104 | -10/Mines | Core integrity fell below 20% 2126 | -10/Mines | Destroyed 7 combat bots 2131 | -10/Mines | Lost 5 parts (1n2u2w) 2189 | -10/Mines | Destroyed self with Rocket Launcher Last Messages --------------- 02159_ V31J/QN,IDD4NQYYKU#P SG0 02159_ U-05 Engineer lays Concrete. 02160_ The unstable cave ceiling collapses. 02160_ U-05 Engineer lays Concrete. 02160_ K-01 Serf collects debris. 02161_ U-05 Engineer builds a Wall. 02164_ K-01 Serf collects debris. 02165_ U-05 Engineer builds a Wall. 02168_ K-01 Serf collects debris. 02169_ as-91658 destroyed. 02171_ K-01 Serf collects debris. 02173_ The unstable cave ceiling collapses. 02174_ as-70957 destroyed. 02179_ The unstable cave ceiling collapses. 02183_ U-05 Engineer builds a Wall. 02184_ System corrupted: Mni. Grenade Launcher rejected. 02185_ The unstable cave ceiling collapses. 02185_ Destroyed Asb. F-torch. 02187_ The unstable cave ceiling collapses. 02189_ as-28715 destroyed. Map ----- +----------------------------------------------------+ | ???????????????????????????????????## # | | ????????????????????????????????????# ## # | | ????????????????????????????????????# ### | | ????????????????????????????????????# ??# # | | ????????????????????????????????????# ??# ## | | ???????????????????????????????????### #??# ##? | | ?????????????????????????????????????###???# ##?? | | ???????????????????????????????????????????# ##?? | | ???????????????????????????????????????????# #?? | | ???????????????????????????????????????????# #?? | | ???????????????????????????????????????#??## #?? | | ??????????????????#??????????????????????## #?? | | ?????????????????????????????????????????# #?? | | ???????????????????????#???????#??????#?## ### | | ????????????????????#?????????#??????????# ##?? | | ?????????????????????????????????????????# ###??? | | ????????????? ?????????????????#?????????# ##???? | | ?????????#??? ? ?????????#??????????????# #???#? | | ????????????# ??????#?????????????#???# #????# | | ????????????# ??####???######???###### #????? | | ?????????????# ## #### # #???# #???#? | | ??????????????# # # # ##??# #????# | | ????????????# # # ## ##?# ########### | | ????????????# # #??# #?#??## #? | | ??????? = % = #### ###?# #?#### ## | | ????????###?# |% @ ##### #?# # | | ??????????????# = # # # ### | | ??????????????###! # ## ## ### | | ??????????????# ## ## " ## ### | | ???????????? ## | | ???????????? ###### | | ????????????## ##?## # ######## | | ????????????? ??### ##????## | | ????????????? ## ????# ##?????### | | ????????????? ??## ???# ##??????### | | ?????????????? ????# ???## #?#??????## | | ???????????????????## ??#?## #?#??????## | | ???????????????????##### ????## ##???####### | | ?????????????????????#?????????## ##?### #### | | ???????????????????????#??? ????## #??# ## | | ??????????????????????????? ????### #???# | | ????????????????????????????? ????## ##???## | | ?????????????????????????????????######???#?## | | ?????????????????????????????????????????????##### | | ???????????????????????????????????????#??#?????#? | | ?????????????????????????????????????????????????? | | | | | | | | | +----------------------------------------------------+ Best States ------------- Heat Dissipation 25 Energy Generation 10 Energy Capacity 300 Matter Stores 405 Matter Capacity 500 Sight Range 16 Terrain Scan Range 14 Terrain Scan Density 10 Resistance: KI 35 Resistance: TH 35 Resistance: EX 35 Resistance: EM 35 Resistance: I 35 Resistance: S 35 Resistance: P 35 Power Shielding 33 Weapon Shielding 33 Evasion (%) 40 Recoil Reduction 2 Offensive Hacking 20 Item Schematics ----------------- None Robot Schematics ------------------ None Fabricated ------------ Nothing Alien Tech Used ----------------- None Achievements -------------- None Challenges ------------ None Game ------ Seed GlidesysCobblerHammer Manual? 0 Play Time 00:15:39 Cumulative 199.7 hours Start 2024.05.27 @ 19:29:05 End 2024.05.27 @ 19:44:59 Sessions 1 Manual Loads 0 Difficulty Explorer Special Mode None Game No. 61 Rogue 1 Adventurer 0 Explorer 60 Win Type - Total 1 Types 0/0/1/0/0/0/0/0/0 Lore% 34 Gallery% 60 Achievement% 43 Wizard Run 0 Options --------- Layout 1 ASCII 0 Keyboard 0 Movement Mouse Keybinds 0 Fullscreen 1 Font 32/SmallcapsGlow Map View 90x40 Zoom Use 0% Tactical HUD 1 Map Filters NONE Filters NONE Steam 1 RUN: 38c61973-2804-45c8-83a5-2d44f0a88720